bitfinex/quotes_BTCUSD_20250527
["timestamp","ask_amount","ask_price","bid_price","bid_amount"]
[1748338214029,0.20260796,109500.0,109490.0,0.82837868]
[1748338214241,0.17920796,109500.0,109490.0,1.02017701]
[1748338214468,0.17920796,109500.0,109490.0,1.02931018]
[1748338216139,0.24049596,109510.0,109500.0,0.34]
[1748338216349,0.51433596,109510.0,109500.0,0.69411256]
[1748338216564,0.24049596,109510.0,109500.0,0.69411256]
[1748338218257,0.24149596,109510.0,109500.0,0.69511256]
[1748338218713,0.24249596,109510.0,109500.0,0.78563407]
[1748338218943,0.24249596,109510.0,109500.0,0.69611256]
[1748338222791,0.24249596,109510.0,109500.0,0.70706047]
[1748338223195,0.51633596,109510.0,109500.0,0.70706047]
[1748338226596,0.24249596,109510.0,109500.0,0.70706047]
[1748338226783,0.51633596,109510.0,109500.0,0.79658198]
[1748338227179,0.51633596,109510.0,109500.0,0.44246942]
[1748338227397,0.51633596,109510.0,109500.0,0.35294791]
[1748338231923,0.24249596,109510.0,109500.0,0.01294791]
[1748338232225,0.24249596,109510.0,109500.0,0.33180525]
[1748338234392,0.24249596,109510.0,109500.0,0.33080525]
[1748338237080,0.51633596,109510.0,109500.0,0.33080525]
[1748338238027,0.51633596,109510.0,109500.0,0.3453769]
[1748338238269,0.51633596,109510.0,109500.0,0.40373818]
[1748338238758,0.51633596,109510.0,109500.0,0.3453769]
[1748338239223,0.51633596,109510.0,109500.0,0.33080525]
[1748338242370,0.49153596,109510.0,109500.0,0.84144341]
[1748338242586,0.49153596,109510.0,109500.0,0.85057574]
[1748338242814,0.49153596,109510.0,109500.0,0.64966259]
[1748338243031,0.49153596,109510.0,109500.0,0.70889728]
[1748338243245,0.49153596,109510.0,109500.0,0.64966259]
[1748338243894,0.49153596,109510.0,109500.0,0.83231099]
[1748338244111,0.49153596,109510.0,109500.0,0.42959575]
[1748338244295,0.21769596,109510.0,109500.0,0.42959575]
[1748338244708,0.21769596,109510.0,109500.0,0.31885734]
[1748338244911,0.21769596,109510.0,109500.0,0.83862766]
[1748338245151,0.02049507,109510.0,109500.0,1.39330001]
[1748338245370,0.02962598,109510.0,109500.0,1.40784086]
[1748338245586,0.04788831,109510.0,109500.0,1.40784086]
[1748338245839,0.04788831,109510.0,109500.0,0.78469783]
[1748338246058,0.04788831,109510.0,109500.0,1.16624263]
[1748338246186,0.04788839,109510.0,109500.0,1.16624263]
[1748338247111,0.0570198,109510.0,109500.0,1.16624263]
[1748338247330,0.0570198,109510.0,109500.0,1.37881975]
[1748338247534,0.04788839,109510.0,109500.0,1.37881975]
[1748338248666,0.0570198,109510.0,109500.0,1.37881975]
[1748338250444,0.0570198,109510.0,109500.0,1.67531975]
[1748338251012,0.04788839,109510.0,109500.0,1.67531975]
[1748338251826,0.04788839,109510.0,109500.0,1.76484126]
[1748338253261,0.04788831,109510.0,109500.0,1.75026961]
[1748338254314,0.03875706,109510.0,109500.0,1.75026961]
[1748338254633,0.04788831,109510.0,109500.0,1.76484126]
[1748338256135,0.04788822,109510.0,109500.0,1.76484126]
[1748338256434,0.04788822,109510.0,109500.0,1.76480126]
[1748338256661,0.05701955,109510.0,109500.0,1.76480126]
[1748338256862,0.04788822,109510.0,109500.0,1.76480126]
[1748338257090,0.04788822,109510.0,109500.0,1.67527975]
[1748338257315,0.05701955,109510.0,109500.0,1.65237975]
[1748338258696,0.05702013,109510.0,109500.0,1.65237975]
[1748338259559,0.05702013,109510.0,109500.0,1.62498075]
[1748338260389,0.04788872,109510.0,109500.0,1.62498075]
[1748338260594,0.05702013,109510.0,109500.0,1.62498075]
[1748338261351,0.05702013,109510.0,109500.0,1.66467513]
[1748338263159,0.04788872,109510.0,109500.0,1.66467513]
[1748338263374,0.05702013,109510.0,109500.0,1.66467513]
[1748338263766,0.23965185,109510.0,109500.0,1.36817513]
[1748338264010,0.07972072,109510.0,109500.0,1.64197513]
[1748338264457,0.26235244,109510.0,109500.0,1.64197513]
[1748338264650,0.07972072,109510.0,109500.0,1.64197513]
[1748338265388,0.26235244,109510.0,109500.0,1.64197513]
[1748338265786,0.05702072,109510.0,109500.0,1.64197513]
[1748338266505,0.23965244,109510.0,109500.0,1.64197513]
[1748338266711,0.04788922,109510.0,109500.0,1.64197513]
[1748338266919,0.02962648,109510.0,109500.0,1.64197513]
[1748338267125,0.03875789,109510.0,109500.0,1.28782933]
[1748338269079,0.06135789,109510.0,109500.0,1.28782933]
[1748338269232,0.07048939,109510.0,109500.0,1.28782933]
[1748338269447,0.25675887,109510.0,109500.0,0.31107165]
[1748338270555,0.25675887,109510.0,109500.0,0.2965]
[1748338274202,0.19178065,109500.0,109490.0,2.35374392]
[1748338274446,0.21418065,109500.0,109490.0,2.44328948]
[1748338275236,0.21518065,109500.0,109490.0,2.43515648]
[1748338275439,0.21618065,109500.0,109490.0,2.43715648]
[1748338275637,0.23858065,109500.0,109490.0,2.43715648]
[1748338276915,0.23858065,109500.0,109490.0,2.44628948]
[1748338277126,0.24771281,109500.0,109490.0,2.44628948]
[1748338277639,0.22531281,109500.0,109490.0,2.45542231]
[1748338278197,0.22531281,109500.0,109490.0,2.44628948]
[1748338279508,0.22531281,109500.0,109490.0,2.4554224]
[1748338279655,0.22531281,109500.0,109490.0,2.46455515]
[1748338279863,0.24691281,109500.0,109490.0,2.46455515]
[1748338284571,0.24691281,109500.0,109490.0,2.46355515]
[1748338284791,0.24691281,109500.0,109490.0,2.55307666]
[1748338286452,0.24691281,109500.0,109490.0,2.54394391]
[1748338286670,0.24691281,109500.0,109490.0,2.55307674]
[1748338287545,0.24691281,109500.0,109490.0,2.46355523]
[1748338288167,0.24691281,109500.0,109490.0,2.46413274]
[1748338288935,0.24691281,109500.0,109490.0,1.85791712]
[1748338289151,0.23778065,109500.0,109490.0,1.51791712]
[1748338290222,0.23778065,109500.0,109490.0,1.50334547]
[1748338293788,0.28075831,109500.0,109490.0,1.50334547]
[1748338294016,0.23778065,109500.0,109490.0,1.50334547]
[1748338299053,0.23778065,109500.0,109490.0,1.51791712]
[1748338301315,0.011132,109500.0,109490.0,1.70971528]
[1748338301491,0.03852808,109500.0,109490.0,2.15752643]
[1748338301697,0.03852808,109500.0,109490.0,2.18122643]
[1748338301902,0.03852808,109500.0,109490.0,2.27074794]
[1748338303062,0.01113175,109500.0,109490.0,2.28528879]
[1748338303259,0.02939566,109500.0,109490.0,2.28528879]
[1748338304691,0.02939566,109500.0,109490.0,1.94471128]
[1748338304902,0.02939558,109500.0,109490.0,1.94471128]
[1748338305112,0.03852766,109500.0,109490.0,1.93013963]
[1748338305745,0.06905991,109500.0,109490.0,1.81691812]
[1748338305967,0.06905991,109500.0,109490.0,1.80237727]
[1748338306403,0.06905991,109500.0,109490.0,1.81691812]
[1748338306611,0.09065991,109500.0,109490.0,1.81691812]
[1748338307787,0.09066049,109500.0,109490.0,1.81691812]
[1748338308194,0.09066049,109500.0,109490.0,1.81743287]
[1748338310108,0.09066049,109500.0,109490.0,1.83201374]
[1748338310641,0.27330889,109500.0,109490.0,1.83201374]
[1748338311684,0.27330948,109500.0,109490.0,1.8320139]
[1748338312130,0.26417748,109500.0,109490.0,1.51786358]
[1748338312340,0.24591315,109500.0,109490.0,1.99263491]
[1748338312543,0.24591315,109500.0,109490.0,2.00176783]
[1748338313156,0.24591315,109500.0,109490.0,2.01090066]
[1748338313576,0.24591315,109500.0,109490.0,2.10042217]
[1748338313784,0.24591315,109500.0,109490.0,2.01090066]
[1748338314171,0.24591315,109500.0,109490.0,1.73706066]
[1748338314774,0.24257689,109500.0,109490.0,1.74619333]
[1748338314993,0.24257748,109500.0,109490.0,2.00176783]
[1748338315127,0.26477748,109500.0,109490.0,2.01090066]
[1748338316309,0.2556454,109500.0,109490.0,2.01090066]
[1748338318303,0.2556454,109500.0,109490.0,2.02003341]
[1748338318951,0.2556454,109500.0,109490.0,2.08619341]
[1748338319491,0.2556454,109500.0,109490.0,2.07706066]
[1748338320723,0.2556454,109500.0,109490.0,2.10446466]
[1748338322175,0.2556454,109500.0,109490.0,2.11359741]
[1748338322721,0.06386458,109500.0,109490.0,2.11359683]
[1748338322923,0.06386425,109500.0,109490.0,2.17064748]
[1748338323134,0.25564498,109500.0,109490.0,2.17064748]
[1748338323302,0.072996,109500.0,109490.0,2.17064748]
[1748338323521,0.02026375,109500.0,109490.0,2.26019304]
[1748338323926,0.01113175,109500.0,109490.0,2.27473389]
[1748338324162,0.02026366,109500.0,109490.0,2.27473389]
[1748338324324,0.02026375,109500.0,109490.0,2.27473389]
[1748338324741,0.02026366,109500.0,109490.0,2.26015302]
[1748338325126,0.01113175,109500.0,109490.0,2.30615302]
[1748338325363,0.01113166,109500.0,109490.0,2.30615302]
[1748338325573,0.002,109500.0,109490.0,2.30615302]
[1748338325747,0.01113175,109500.0,109490.0,2.30615302]
[1748338325956,0.002,109500.0,109490.0,2.30615302]
[1748338327461,0.002,109500.0,109490.0,2.60265302]
[1748338331702,0.002,109500.0,109490.0,2.96869302]
[1748338332744,0.002,109500.0,109490.0,3.24249302]
[1748338333245,0.002,109500.0,109490.0,3.21949302]
[1748338333484,0.01113166,109500.0,109490.0,3.21949302]
[1748338333695,0.002,109500.0,109490.0,3.21949302]
[1748338340187,0.002,109500.0,109490.0,3.07289681]
[1748338342948,0.002,109500.0,109490.0,3.04989681]
[1748338344301,0.01113166,109500.0,109490.0,3.04989681]
[1748338344534,0.002,109500.0,109490.0,3.04989681]
[1748338345488,0.002,109500.0,109490.0,3.04938206]
[1748338347213,0.05573166,109500.0,109490.0,3.04842206]
[1748338347424,0.0243,109500.0,109490.0,3.04842206]
[1748338349223,0.0243,109500.0,109490.0,3.04893681]
[1748338354135,0.002,109500.0,109490.0,3.07073681]
[1748338355029,0.002,109500.0,109490.0,3.04893681]
[1748338355672,0.002,109500.0,109490.0,3.10140961]
[1748338358456,0.002,109500.0,109490.0,3.07810961]
[1748338359322,0.002,109500.0,109490.0,2.82036384]
[1748338360338,0.002,109500.0,109490.0,2.79119104]
[1748338370462,0.0242,109500.0,109490.0,2.79119104]
[1748338370663,0.0242,109500.0,109490.0,2.82036384]
[1748338372024,0.0242,109500.0,109490.0,2.54656384]
[1748338372224,0.0469,109500.0,109490.0,2.82036384]
[1748338372711,0.0469,109500.0,109490.0,2.54656384]
[1748338372908,0.0469,109500.0,109490.0,2.82036384]
[1748338376834,0.0469,109500.0,109490.0,2.54656384]
[1748338377012,0.0469,109500.0,109490.0,2.82036384]
[1748338380551,0.0469,109500.0,109490.0,2.54604909]
[1748338380752,0.24781298,109500.0,109490.0,1.97771984]
[1748338380975,0.24781298,109500.0,109490.0,2.43790982]
[1748338381177,0.06516357,109500.0,109490.0,2.42196274]
[1748338381300,0.07429573,109500.0,109490.0,2.43650359]
[1748338381500,0.08342798,109500.0,109490.0,2.43650359]
[1748338382155,0.27520871,109500.0,109490.0,2.40733079]
[1748338383417,0.08342798,109500.0,109490.0,2.40733079]
[1748338383638,0.09256031,109500.0,109490.0,2.40733079]
[1748338383953,0.09256031,109500.0,109490.0,2.40783846]
[1748338384176,0.27520871,109500.0,109490.0,2.40783846]
[1748338386061,0.09256031,109500.0,109490.0,2.40783846]
[1748338386584,0.09256031,109500.0,109490.0,2.13403846]
[1748338386940,0.27520947,109500.0,109490.0,2.40783862]
[1748338387170,0.27520947,109500.0,109490.0,2.41697137]
[1748338389579,0.27520947,109500.0,109490.0,2.12047137]
[1748338391260,0.27520947,109500.0,109490.0,2.48467137]
[1748338393225,0.08342865,109500.0,109490.0,2.49380404]
[1748338393459,0.26607705,109500.0,109490.0,2.49380404]
[1748338394074,0.27520947,109500.0,109490.0,2.49380404]
[1748338398375,0.09256107,109500.0,109490.0,2.49380404]
[1748338398594,0.27520947,109500.0,109490.0,2.49380404]
[1748338401138,0.002,109500.0,109490.0,2.49380404]
[1748338401553,0.002,109500.0,109490.0,2.47370404]
[1748338401765,0.002,109500.0,109490.0,2.81370404]
[1748338401978,0.002,109500.0,109490.0,2.79030404]
[1748338403028,0.002,109500.0,109490.0,2.81250404]
[1748338403447,0.002,109500.0,109490.0,2.79030404]
[1748338405069,0.002,109500.0,109490.0,2.45030404]
[1748338405440,0.002,109500.0,109490.0,2.79030404]
[1748338411385,0.0258,109500.0,109490.0,2.79030404]
[1748338415460,0.0258,109500.0,109490.0,2.56193981]
[1748338416367,0.002,109500.0,109490.0,2.56193981]
[1748338418794,0.0245,109500.0,109490.0,2.56193981]
[1748338420400,0.0245,109500.0,109490.0,2.28813981]
[1748338420614,0.06466375,109500.0,109490.0,2.26987439]
[1748338420759,0.06466375,109500.0,109490.0,2.55280706]
[1748338420969,0.07379591,109500.0,109490.0,1.91480706]
[1748338421169,0.06466375,109500.0,109490.0,2.56646752]
[1748338423070,0.06466375,109500.0,109490.0,1.92938752]
[1748338423271,0.06466375,109500.0,109490.0,2.20318752]
[1748338423600,0.07379583,109500.0,109490.0,2.20318752]
[1748338424009,0.08292808,109500.0,109490.0,2.20318752]
[1748338424198,0.07379583,109500.0,109490.0,2.20318752]
[1748338425002,0.07379583,109500.0,109490.0,1.90668752]
[1748338426232,0.07379583,109500.0,109490.0,1.89210706]
[1748338428272,0.08292808,109500.0,109490.0,1.89210706]
[1748338428887,0.07379583,109500.0,109490.0,1.89210706]
[1748338429098,0.08292808,109500.0,109490.0,1.89210706]
[1748338430984,0.08292808,109500.0,109490.0,2.18860706]
[1748338432338,0.07379583,109500.0,109490.0,2.18860706]
[1748338432572,0.08292808,109500.0,109490.0,2.18860706]
[1748338435496,0.08292808,109500.0,109490.0,1.91480706]
[1748338435617,0.08292808,109500.0,109490.0,2.18860706]
[1748338435820,0.2747089,109500.0,109490.0,2.18860706]
[1748338436097,0.08292808,109500.0,109490.0,2.18860706]
[1748338436231,0.27470881,109500.0,109490.0,2.18860706]
[1748338436424,0.09206041,109500.0,109490.0,2.18860706]
[1748338436628,0.27470881,109500.0,109490.0,2.18860706]
[1748338436831,0.27470881,109500.0,109490.0,1.89210706]
[1748338437057,0.27470948,109500.0,109490.0,1.89210706]
[1748338437430,0.24731315,109500.0,109490.0,1.38456963]
[1748338437682,0.24731315,109500.0,109490.0,1.35716563]
[1748338438070,0.24731315,109500.0,109490.0,1.37175503]
[1748338438906,0.24731315,109500.0,109490.0,1.64555503]
[1748338440371,0.24731315,109500.0,109490.0,1.37175503]
[1748338440586,0.24731315,109500.0,109490.0,1.64555503]
[1748338443958,0.05553208,109500.0,109490.0,1.85561903]
[1748338444173,0.07379608,109500.0,109490.0,1.87929255]
[1748338445227,0.25644448,109500.0,109490.0,1.87929255]
[1748338445464,0.26557681,109500.0,109490.0,1.87929255]
[1748338445690,0.08292841,109500.0,109490.0,1.87929255]
[1748338445920,0.07379608,109500.0,109490.0,1.87929255]
[1748338446613,0.08292841,109500.0,109490.0,1.90669555]
[1748338446928,0.26557681,109500.0,109490.0,1.90669555]
[1748338447441,0.27470923,109500.0,109490.0,1.90669555]
[1748338454492,0.08292841,109500.0,109490.0,1.90669555]
[1748338454703,0.26557681,109500.0,109490.0,1.90669555]
[1748338456795,0.07379608,109500.0,109490.0,1.90669555]
[1748338459120,0.07379599,109500.0,109490.0,1.90669555]
[1748338460597,0.06466383,109500.0,109490.0,1.90669555]
[1748338461019,0.07379599,109500.0,109490.0,1.90669555]
[1748338461213,0.07379591,109500.0,109490.0,1.90669555]
[1748338462566,0.08292807,109500.0,109490.0,1.90669555]
[1748338464137,0.07379591,109500.0,109490.0,1.90669555]
[1748338464979,0.07379591,109500.0,109490.0,1.89210615]
[1748338468697,0.26557706,109500.0,109490.0,1.58549996]
[1748338468867,0.25644506,109500.0,109490.0,1.8318968]
[1748338469070,0.24731298,109500.0,109490.0,1.82276396]
[1748338469271,0.24731298,109500.0,109490.0,1.84649]
[1748338469499,0.24731298,109500.0,109490.0,1.85562292]
[1748338469905,0.24731298,109500.0,109490.0,1.855623]
[1748338470106,0.24731298,109500.0,109490.0,1.86475583]
[1748338470585,0.24731298,109500.0,109490.0,1.85016287]
[1748338470790,0.24731298,109500.0,109490.0,1.84103004]
[1748338471630,0.24731298,109500.0,109490.0,1.58724943]
[1748338472796,0.24731298,109500.0,109490.0,1.36336715]
[1748338474742,0.24731298,109500.0,109490.0,1.37250007]
[1748338475952,0.24731298,109500.0,109490.0,1.08956715]
[1748338476141,0.24731298,109500.0,109490.0,1.36336715]
[1748338479711,0.24731298,109500.0,109490.0,1.37249998]
[1748338480449,0.24731298,109500.0,109490.0,1.08043415]
[1748338480656,0.24731298,109500.0,109490.0,1.36336707]
[1748338489913,0.24731298,109500.0,109490.0,1.3724999]
[1748338490449,0.24731298,109500.0,109490.0,1.35423415]
[1748338490701,0.24731298,109500.0,109490.0,1.36336715]
[1748338490898,0.24731298,109500.0,109490.0,1.37250007]
[1748338493225,0.24731298,109500.0,109490.0,1.3816329]
[1748338495207,0.24731298,109500.0,109490.0,1.3816324]
[1748338500698,0.24731298,109500.0,109490.0,1.1078324]
[1748338500905,0.24731298,109500.0,109490.0,1.3816324]
[1748338503791,0.24731298,109500.0,109490.0,1.4090364]
[1748338505225,0.24731298,109500.0,109490.0,1.40903599]
[1748338505444,0.08292865,109500.0,109490.0,1.40903599]
[1748338505683,0.26557705,109500.0,109490.0,1.06903599]
[1748338506729,0.08292865,109500.0,109490.0,1.06903599]
[1748338506878,0.26557705,109500.0,109490.0,1.06903599]
[1748338507096,0.27470947,109500.0,109490.0,1.06903599]
[1748338507902,0.08292865,109500.0,109490.0,1.06903599]
[1748338508114,0.27470947,109500.0,109490.0,1.06903599]
[1748338508326,0.26557705,109500.0,109490.0,1.06903599]
[1748338508541,0.06466407,109500.0,109490.0,1.06903599]
[1748338508965,0.07379632,109500.0,109490.0,1.06903599]
[1748338511143,0.07379632,109500.0,109490.0,1.40903599]
[1748338520394,0.06466407,109500.0,109490.0,1.40903599]
[1748338520601,0.04276357,109500.0,109490.0,1.42357684]
[1748338520756,0.05189573,109500.0,109490.0,1.42357684]
[1748338520964,0.04276357,109500.0,109490.0,1.42357684]
[1748338522237,0.06466357,109500.0,109490.0,1.42357684]
[1748338522432,0.07379565,109500.0,109490.0,1.42357684]
[1748338523175,0.06466357,109500.0,109490.0,1.42357684]
[1748338523993,0.07379573,109500.0,109490.0,1.42357684]
[1748338525242,0.08292798,109500.0,109490.0,1.14977684]
[1748338525446,0.07379573,109500.0,109490.0,1.42357684]
[1748338526808,0.08292798,109500.0,109490.0,1.42357684]
[1748338529720,0.06466357,109500.0,109490.0,1.42357684]
[1748338529942,0.08292782,109500.0,109490.0,1.42357684]
[1748338530598,0.07379557,109500.0,109490.0,1.42357684]
[1748338530813,0.06466349,109500.0,109490.0,1.42357684]
[1748338531026,0.07379549,109500.0,109490.0,1.42357684]
[1748338532547,0.03363166,109500.0,109490.0,1.42357684]
[1748338532771,0.02026341,109500.0,109490.0,1.42357684]
[1748338532979,0.02939532,109500.0,109490.0,1.42357684]
[1748338533400,0.01113166,109500.0,109490.0,1.42357684]
[1748338533862,0.02026357,109500.0,109490.0,1.42357684]
[1748338534047,0.02026349,109500.0,109490.0,1.42357684]
[1748338534482,0.002,109500.0,109490.0,1.42357684]
[1748338534702,0.002,109500.0,109490.0,1.46837684]
[1748338534924,0.002,109500.0,109490.0,1.76487684]
[1748338545244,0.002,109500.0,109490.0,1.74267684]
[1748338552764,0.002,109500.0,109490.0,1.72007684]
[1748338553277,0.002,109500.0,109490.0,1.44627684]
[1748338553458,0.002,109500.0,109490.0,1.72007684]
[1748338554758,0.0463,109500.0,109490.0,1.44627684]
[1748338554964,0.0463,109500.0,109490.0,1.72007684]
[1748338556048,0.0463,109500.0,109490.0,2.07819684]
[1748338556363,0.024,109500.0,109490.0,2.07819684]
[1748338556982,0.024,109500.0,109490.0,1.82244372]
[1748338557625,0.002,109500.0,109490.0,1.82244372]
[1748338558009,0.002,109500.0,109490.0,3.24936172]
[1748338558210,0.002,109500.0,109490.0,2.97830272]
[1748338558411,0.002,109500.0,109490.0,2.94032872]
[1748338559046,0.002,109500.0,109490.0,2.45247772]
[1748338559187,0.025,109500.0,109490.0,2.45247772]
[1748338559662,0.025,109500.0,109490.0,2.34922672]
[1748338563608,0.025,109500.0,109490.0,2.25359572]
[1748338566097,0.025,109500.0,109490.0,2.22248072]
[1748338566852,0.025,109500.0,109490.0,1.69894072]
[1748338567075,0.0486,109500.0,109490.0,1.93620172]
[1748338567363,0.0486,109500.0,109490.0,1.96537452]
[1748338568093,0.0486,109500.0,109490.0,2.6029155]
[1748338568556,0.0486,109500.0,109490.0,2.4891175]
[1748338570829,0.0486,109500.0,109490.0,1.85157652]
[1748338570987,0.0486,109500.0,109490.0,2.4891175]
[1748338573184,0.0486,109500.0,109490.0,2.17034701]
[1748338573633,0.0486,109500.0,109490.0,1.85157652]
[1748338573816,0.0486,109500.0,109490.0,2.4891175]
[1748338575773,0.0486,109500.0,109490.0,2.17034701]
[1748338578174,0.0486,109500.0,109490.0,2.4891175]
[1748338578585,0.0486,109500.0,109490.0,2.2153575]
[1748338578886,0.06686366,109500.0,109490.0,2.17034701]
[1748338579069,0.05773175,109500.0,109490.0,2.17034701]
[1748338579566,0.05773175,109500.0,109490.0,2.14117421]
[1748338583697,0.0486,109500.0,109490.0,2.14117421]
[1748338583901,0.05773175,109500.0,109490.0,2.14117421]
[1748338584422,0.0486,109500.0,109490.0,2.14117421]
[1748338585178,0.0486,109500.0,109490.0,2.4599447]
[1748338586743,0.0486,109500.0,109490.0,2.1861847]
[1748338586959,0.0486,109500.0,109490.0,2.4599447]
[1748338589806,0.0486,109500.0,109490.0,2.4891175]
[1748338592698,0.0486,109500.0,109490.0,2.2153575]
[1748338592909,0.0486,109500.0,109490.0,2.4891575]
[1748338599214,0.0486,109500.0,109490.0,2.2153575]
[1748338599450,0.0486,109500.0,109490.0,2.4891575]
[1748338601730,0.0486,109500.0,109490.0,2.4599847]
[1748338606564,0.24951265,109500.0,109490.0,0.28374962]
[1748338607005,0.24951265,109500.0,109490.0,0.60252011]
[1748338607218,0.24951265,109500.0,109490.0,0.94252011]
[1748338607424,0.24951265,109500.0,109490.0,0.95712012]
[1748338607661,0.24951265,109500.0,109490.0,0.61712012]
[1748338608053,0.24951265,109500.0,109490.0,0.95712012]
[1748338608768,0.24951265,109500.0,109490.0,0.95345783]
[1748338611377,0.24951265,109500.0,109490.0,1.31077783]
[1748338614295,0.24951265,109500.0,109490.0,0.97077783]
[1748338619130,0.24951265,109500.0,109490.0,0.61345783]
[1748338619283,0.24951265,109500.0,109490.0,0.96997783]
[1748338620094,0.24951265,109500.0,109490.0,0.65120734]
[1748338620531,0.24951265,109500.0,109490.0,0.29468734]
[1748338620735,0.24951265,109500.0,109490.0,0.65120734]
[1748338624155,0.24951265,109500.0,109490.0,0.29468734]
[1748338624386,0.24951265,109500.0,109490.0,0.65120734]
[1748338625718,0.24951265,109500.0,109490.0,0.96997783]
[1748338626253,0.24951265,109500.0,109490.0,0.65120734]
[1748338627334,0.24951265,109500.0,109490.0,0.99120734]
[1748338628599,0.24951265,109500.0,109490.0,0.63468734]
[1748338628808,0.24951265,109500.0,109490.0,1.26504734]
[1748338630200,0.24951265,109500.0,109490.0,0.95345783]
[1748338630422,0.24951265,109500.0,109490.0,1.58385783]
[1748338631913,0.24951265,109500.0,109490.0,1.79392167]
[1748338631914,0.002,109500.0,109490.0,1.79392167]
[1748338632122,0.002,109500.0,109490.0,1.83006252]
[1748338632542,0.002,109500.0,109490.0,2.12656252]
[1748338632754,0.002,109500.0,109490.0,2.46853301]
[1748338632961,0.002,109500.0,109490.0,2.14976252]
[1748338633177,0.002,109500.0,109490.0,2.46853301]
[1748338633590,0.002,109500.0,109490.0,2.45759529]
[1748338633802,0.002,109500.0,109490.0,2.1388248]
[1748338634613,0.002,109500.0,109490.0,2.45759529]
[1748338634875,0.00936424,109510.0,109500.0,0.55004464]
[1748338635088,0.00936424,109510.0,109500.0,3.24030956]
[1748338635519,0.00936424,109510.0,109500.0,3.04595301]
[1748338635729,0.00936424,109510.0,109500.0,3.05595301]
[1748338635964,0.00936424,109510.0,109500.0,2.68277201]
[1748338636182,0.00936424,109510.0,109500.0,2.61908301]
[1748338636396,0.01036424,109510.0,109500.0,2.57108301]
[1748338636623,0.01036424,109510.0,109500.0,2.65025581]
[1748338637038,0.01036424,109510.0,109500.0,2.62285957]
[1748338637461,0.01036424,109510.0,109500.0,2.94163006]
[1748338637676,0.02,109520.0,109510.0,0.07054085]
[1748338637902,0.02004974,109520.0,109510.0,2.99703577]
[1748338638111,0.02004974,109520.0,109510.0,2.6769193]
[1748338638316,0.02004974,109520.0,109510.0,2.9734193]
[1748338638541,0.02004974,109520.0,109510.0,2.6769193]
[1748338638746,0.02004974,109520.0,109510.0,2.65132736]
[1748338638963,0.02104974,109520.0,109510.0,2.95182736]
[1748338639677,0.02104974,109520.0,109510.0,2.96538169]
[1748338640126,0.02104974,109520.0,109510.0,2.99097363]
[1748338640516,0.02204974,109520.0,109510.0,2.99497363]
[1748338641281,0.03424758,109530.0,109520.0,0.34]
[1748338641482,0.03424758,109530.0,109520.0,1.37166351]
[1748338642083,0.002,109530.0,109520.0,1.39905351]
[1748338642533,0.003,109530.0,109520.0,1.40205351]
[1748338643171,0.003,109530.0,109520.0,1.40405351]
[1748338643385,0.003,109530.0,109520.0,1.13029351]
[1748338643612,0.003,109530.0,109520.0,1.40405351]
[1748338644331,0.003,109530.0,109520.0,1.1943816]
[1748338644769,0.003,109530.0,109520.0,1.06405351]
[1748338646265,0.003,109530.0,109520.0,1.40405351]
[1748338646486,0.003,109530.0,109520.0,1.38025351]
[1748338647853,0.003,109530.0,109520.0,0.37239]
[1748338648076,0.0489,109530.0,109520.0,0.72811]
[1748338648295,0.0489,109530.0,109520.0,0.97444]
[1748338648512,0.0489,109530.0,109520.0,0.98898085]
[1748338648967,0.0489,109530.0,109520.0,0.9744]
[1748338652244,0.0489,109530.0,109520.0,1.32832351]
[1748338654808,0.0489,109530.0,109520.0,1.34282309]
[1748338657566,0.0489,109530.0,109520.0,1.06910309]
[1748338657780,0.0489,109530.0,109520.0,1.34282309]
[1748338659212,0.0489,109530.0,109520.0,0.98889958]
[1748338659628,0.0489,109530.0,109520.0,1.34282309]
[1748338660147,0.0489,109530.0,109520.0,0.98889958]
[1748338660357,0.0489,109530.0,109520.0,1.34282309]
[1748338660883,0.0489,109530.0,109520.0,1.32832351]
[1748338669650,0.0489,109530.0,109520.0,0.345]
[1748338669897,0.0489,109530.0,109520.0,0.9744]
[1748338670761,0.0489,109530.0,109520.0,1.32832351]
[1748338678198,0.0489,109530.0,109520.0,0.9744]
[1748338679965,0.0489,109530.0,109520.0,0.70068]
[1748338680154,0.0489,109530.0,109520.0,0.9744]
[1748338681501,0.23149837,109530.0,109520.0,1.15701504]
[1748338681999,0.0489,109530.0,109520.0,1.47568419]
[1748338682213,0.06715907,109530.0,109520.0,1.49394476]
[1748338682426,0.07628882,109530.0,109520.0,1.49394476]
[1748338684272,0.08541865,109530.0,109520.0,1.49394476]
[1748338685970,0.07628882,109530.0,109520.0,1.49394476]
[1748338686483,0.07628882,109530.0,109520.0,0.52454476]
[1748338686706,0.52347778,109530.0,109520.0,0.005]
[1748338686946,0.25829359,109530.0,109520.0,0.005]
[1748338687162,0.53201359,109530.0,109520.0,0.005]
[1748338687381,0.54908534,109530.0,109520.0,0.005]
[1748338687860,0.52347778,109530.0,109520.0,0.005]
[1748338688078,0.52247778,109530.0,109520.0,0.002]
[1748338688289,0.19174562,109520.0,109510.0,0.0291728]
[1748338688499,0.23444562,109520.0,109510.0,0.0291728]
[1748338689326,0.23544562,109520.0,109510.0,0.0321728]
[1748338689735,0.23644562,109520.0,109510.0,0.0351728]
[1748338691534,0.23644562,109520.0,109510.0,0.006]
[1748338700080,0.23644562,109520.0,109510.0,0.36024937]
[1748338700323,0.23644562,109520.0,109510.0,0.006]
[1748338701030,0.23644562,109520.0,109510.0,0.55201267]
[1748338701242,0.22731504,109520.0,109510.0,0.006]
[1748338703429,0.20089413,109510.0,109500.0,1.03353734]
[1748338703643,0.20089455,109510.0,109500.0,1.22536213]
[1748338703849,0.20089455,109510.0,109500.0,1.21079039]
[1748338704647,0.20189455,109510.0,109500.0,1.21479039]
[1748338704853,0.20289455,109510.0,109500.0,1.21879039]
[1748338705811,0.20289455,109510.0,109500.0,1.21424676]
[1748338706014,0.20289455,109510.0,109500.0,0.91774676]
[1748338707759,0.20289455,109510.0,109500.0,1.54626676]
[1748338709140,0.20289455,109510.0,109500.0,1.55539867]
[1748338712443,0.20289455,109510.0,109500.0,1.54626676]
[1748338712777,0.22429455,109510.0,109500.0,1.54626676]
[1748338714444,0.20289455,109510.0,109500.0,1.54626676]
[1748338715444,0.20289455,109510.0,109500.0,1.55539867]
[1748338716594,0.20289455,109510.0,109500.0,1.54626676]
[1748338717720,0.2120258,109510.0,109500.0,1.55539867]
[1748338718071,0.22115738,109510.0,109500.0,1.58279767]
[1748338720741,0.02026258,109510.0,109500.0,1.5919295]
[1748338720973,0.2120258,109510.0,109500.0,1.25928013]
[1748338721168,0.22115738,109510.0,109500.0,1.5919295]
[1748338721592,0.03852566,109510.0,109500.0,1.5919295]
[1748338721804,0.02026258,109510.0,109500.0,1.5919295]
[1748338722016,0.02939399,109510.0,109500.0,1.5919295]
[1748338724164,0.011131,109510.0,109500.0,1.5919295]